bitfinex/quotes_ETHUSD_20241203
["timestamp","ask_amount","ask_price","bid_price","bid_amount"]
[1733230077477,0.95687347,3608.1,3608.0,4.23292425]
[1733230077637,1.15702038,3608.3,3608.0,5.13440452]
[1733230077839,1.15702038,3608.3,3608.2,2.77146]
[1733230078039,4.1175891,3608.3,3608.0,2.36279452]
[1733230078342,3.54879162,3608.2,3608.1,2.77154]
[1733230078543,3.54879162,3608.2,3608.1,4.23285425]
[1733230079143,2.39186078,3608.2,3608.1,4.23285425]
[1733230079345,0.95674431,3608.2,3608.1,4.23285425]
[1733230079637,1.15693084,3608.4,3608.3,2.77138]
[1733230079858,3.54849632,3608.4,3608.3,2.77138]
[1733230080774,2.39156548,3608.4,3608.3,2.77138]
[1733230081351,0.95662619,3608.4,3608.3,6.5529687]
[1733230081759,1.1568345,3608.8,3608.7,2.77108]
[1733230082077,3.54907621,3608.8,3608.7,2.77108]
[1733230082285,2.39189068,3608.8,3608.7,2.77108]
[1733230082585,2.39216783,3608.8,3608.5,2.7712]
[1733230082775,3.54928499,3608.7,3608.6,2.77114]
[1733230082975,2.39216783,3608.7,3608.6,2.77114]
[1733230083274,3.54928499,3608.7,3608.6,2.77114]
[1733230083981,2.39216783,3608.7,3608.6,2.77114]
[1733230085048,3.55004324,3608.7,3608.6,2.77114]
[1733230086180,1.5463,3608.6,3608.1,4.46131425]
[1733230086577,1.15787541,3608.7,3608.1,4.46131425]
[1733230086578,0.95722682,3608.5,3608.4,4.23262425]
[1733230087366,1.15787541,3608.7,3608.6,2.77115]
[1733230087546,3.55018021,3608.7,3608.6,2.77115]
[1733230087750,3.55018021,3608.7,3608.6,4.23246425]
[1733230087985,2.39272078,3608.7,3608.6,4.23246425]
[1733230089470,0.95708831,3608.7,3608.6,4.23246425]
[1733230089880,1.15709718,3608.9,3608.8,2.771]
[1733230090188,3.54876485,3608.9,3608.8,2.771]
[1733230091051,3.54840692,3608.9,3608.8,2.771]
[1733230091251,2.39166767,3608.9,3608.8,2.771]
[1733230091489,2.39166767,3608.9,3608.8,8.08559468]
[1733230091692,2.72890688,3609.4,3608.8,8.08559468]
[1733230091852,1.5722,3609.4,3609.1,1.46131425]
[1733230092052,0.95675601,3609.3,3608.9,1.46131425]
[1733230092309,0.95676734,3609.2,3609.0,2.77084]
[1733230092536,1.15670688,3609.3,3609.0,2.77084]
[1733230092744,0.95660587,3609.2,3609.0,2.77084]
[1733230092903,1.15670688,3609.3,3609.0,2.77084]
[1733230093109,2.39185592,3609.2,3609.0,2.77084]
[1733230093349,1.15670688,3609.3,3609.0,2.77084]
[1733230093642,3.54942785,3609.2,3609.0,2.77084]
[1733230093842,0.95704893,3609.1,3608.8,2.77093]
[1733230094046,1.15670688,3609.2,3608.9,2.77091]
[1733230094207,0.95703919,3609.1,3608.5,1.5293]
[1733230094406,1.5257,3609.1,3608.5,1.46131425]
[1733230094645,1.5257,3609.1,3609.0,2.77085]
[1733230094846,2.48269966,3609.1,3609.0,2.77085]
[1733230095209,2.68240688,3609.4,3608.9,3.08521425]
[1733230095524,2.68303958,3609.6,3609.4,2.77054]
[1733230095853,1.15733958,3609.7,3609.5,2.77041]
[1733230096070,2.39199197,3609.6,3609.5,2.77041]
[1733230096547,0.95679679,3609.6,3609.5,2.77041]
[1733230096753,2.39155527,3609.6,3609.5,2.77041]
[1733230096955,0.95652553,3609.6,3609.5,2.77041]
[1733230097131,1.15733958,3609.8,3609.5,2.77041]
[1733230097328,2.68303958,3609.9,3609.6,2.77038]
[1733230097624,0.95658497,3609.8,3609.6,2.77038]
[1733230097854,1.5257,3609.9,3609.6,2.77038]
[1733230098066,0.95630812,3609.8,3609.6,2.77038]
[1733230098273,2.68303958,3609.9,3609.6,2.77038]
[1733230098424,0.95617972,3609.8,3609.6,2.77038]
[1733230098623,1.5257,3609.9,3609.6,2.77038]
[1733230098839,0.95585021,3609.8,3609.6,2.77038]
[1733230099075,2.68303958,3609.9,3609.6,2.77038]
[1733230099227,0.95587814,3609.8,3609.6,2.77038]
[1733230099423,1.5257,3609.9,3609.6,2.77032]
[1733230101128,1.5257,3609.9,3609.7,2.77026]
[1733230101327,2.95892518,3609.9,3609.7,2.77026]
[1733230101558,1.5257,3609.9,3609.7,2.77026]
[1733230103430,1.5257,3609.9,3609.6,2.77035]
[1733230103627,1.5257,3609.9,3609.2,1.46131425]
[1733230103933,1.5257,3609.9,3609.6,2.77038]
[1733230104128,1.5257,3609.9,3609.7,2.7703]
[1733230104764,1.5257,3609.9,3609.4,1.46131425]
[1733230104977,1.5257,3609.9,3609.4,4.23180425]
[1733230105138,1.5257,3609.9,3609.5,2.77046]
[1733230105340,1.5257,3609.9,3609.8,2.77023]
[1733230105541,1.5257,3609.9,3609.4,4.23180425]
[1733230106167,1.5257,3609.9,3609.4,1.46131425]
[1733230106731,1.5257,3609.9,3609.6,2.77038]
[1733230108058,1.5257,3609.9,3609.5,2.7704]
[1733230108261,0.03462695,3609.8,3609.3,2.77059]
[1733230108431,1.5563,3609.7,3609.1,5.77074]
[1733230108635,1.5563,3609.7,3609.2,2.77065]
[1733230111054,1.5563,3609.7,3609.6,2.77039]
[1733230111238,1.5563,3609.7,3609.4,1.46131425]
[1733230111440,1.5563,3609.7,3609.4,4.23183425]
[1733230111638,1.5563,3609.7,3609.5,2.77044]
[1733230112069,1.5392,3609.9,3609.6,2.77037]
[1733230112241,1.5392,3609.9,3609.4,4.23182425]
[1733230112440,1.5392,3609.9,3609.4,2.77051]
[1733230112646,1.95200703,3609.9,3609.4,2.77051]
[1733230112878,1.5392,3609.8,3608.9,7.35765]
[1733230113147,1.57382896,3609.8,3608.9,8.81896425]
[1733230113380,1.57382896,3609.8,3608.8,3.0]
[1733230113596,1.5392,3609.5,3608.4,1.46131425]
[1733230113881,1.57383587,3609.5,3608.4,1.46131425]
[1733230114042,1.5392,3609.5,3608.8,3.0]
[1733230115069,1.57383588,3609.5,3608.8,3.0]
[1733230115241,1.6034,3609.3,3608.6,4.46131425]
[1733230115442,1.6034,3609.1,3608.4,3.33033201]
[1733230115641,1.6034,3609.1,3608.5,2.77122]
[1733230116563,1.6034,3609.1,3608.6,2.77114]
[1733230117284,1.6034,3609.1,3608.6,1.46131425]
[1733230117488,1.6034,3609.1,3608.6,4.23241425]
[1733230118559,1.6034,3609.1,3608.6,2.7711]
[1733230119275,1.6034,3609.1,3608.4,4.23260425]
[1733230120390,1.6034,3609.1,3608.6,1.46131425]
[1733230121594,0.03463799,3609.0,3608.4,1.46131425]
[1733230121802,1.5638,3608.9,3608.3,2.77135]
[1733230122008,1.5638,3608.7,3608.1,3.0]
[1733230122290,0.03464179,3608.6,3607.7,4.39408]
[1733230122497,1.5638,3608.5,3607.7,1.46131425]
[1733230122649,1.5638,3608.5,3608.1,1.46131425]
[1733230122854,1.5638,3608.5,3607.8,0.16002558]
[1733230122855,1.5638,3608.5,3608.3,4.23268425]
[1733230123169,2.65793958,3608.7,3608.4,2.77131]
[1733230123368,2.11524281,3608.6,3608.4,2.77131]
[1733230123572,3.55193735,3608.5,3608.3,1.46131425]
[1733230123770,1.15733958,3608.7,3608.4,2.77124]
[1733230123958,0.95788808,3608.6,3608.4,2.77124]
[1733230124161,1.15733958,3608.7,3608.4,2.77124]
[1733230124355,2.39447671,3608.6,3608.4,2.77124]
[1733230124564,0.95780027,3608.5,3608.4,2.77124]
[1733230124768,1.15733958,3608.7,3608.4,2.77124]
[1733230125099,0.95777467,3608.6,3608.4,2.77124]
[1733230125255,1.15733958,3608.7,3608.4,2.77124]
[1733230125456,0.95776908,3608.6,3608.4,2.77124]
[1733230125654,1.15733958,3608.8,3608.5,2.77123]
[1733230125890,2.39420816,3608.7,3608.5,2.77123]
[1733230126069,1.15733958,3608.8,3608.5,2.77123]
[1733230126275,2.39401868,3608.7,3608.5,2.77123]
[1733230126575,0.95760747,3608.6,3608.5,2.77123]
[1733230126756,2.39410343,3608.6,3608.5,2.77123]
[1733230126955,3.55144301,3608.6,3608.5,2.77123]
[1733230127487,2.39410343,3608.6,3608.5,2.77123]
[1733230127693,3.55144301,3608.6,3608.5,2.77123]
[1733230127851,2.39410343,3608.6,3608.5,4.23254425]
[1733230128052,1.15733958,3609.0,3608.7,2.77101]
[1733230128255,2.39416391,3608.9,3608.7,2.77101]
[1733230128494,0.95760278,3608.8,3608.7,2.77101]
[1733230128656,2.39390881,3608.8,3608.7,2.77101]
[1733230129094,0.95760278,3608.8,3608.7,2.77101]
[1733230129659,0.95760278,3608.8,3608.5,3.62566343]
[1733230129886,1.15733958,3608.9,3608.5,2.77122]
[1733230130059,2.39363564,3608.8,3608.5,2.77122]
[1733230130258,1.15733958,3608.9,3608.5,2.77122]
[1733230130496,2.39372483,3608.8,3608.5,2.77122]
[1733230130683,0.95751612,3608.7,3608.5,2.77122]
[1733230130882,1.15733958,3608.9,3608.5,2.77122]
[1733230131058,0.95755475,3608.8,3608.5,2.77122]
[1733230131258,0.95752609,3608.7,3608.5,2.77122]
[1733230131504,1.72572832,3609.0,3608.5,2.77122]
[1733230131505,1.15733958,3608.8,3608.5,2.77122]
[1733230131711,1.5878,3608.7,3607.9,1.5961]
[1733230131912,1.5878,3608.7,3607.9,3.05741425]
[1733230131913,0.95745837,3608.6,3607.9,3.05741425]
[1733230132080,2.39347385,3608.5,3607.7,1.46131425]
[1733230132397,1.15733958,3608.6,3608.1,2.77148]
[1733230132703,2.39340688,3608.5,3608.1,2.77148]
[1733230132864,0.95736275,3608.4,3608.1,2.77148]
[1733230133198,3.76061511,3608.7,3608.1,2.77148]
[1733230133199,1.15733958,3608.5,3608.1,2.77148]
[1733230133400,1.95221223,3608.4,3608.1,2.77148]
[1733230133608,1.15733958,3608.4,3608.1,2.77148]
[1733230133908,1.15733958,3608.4,3607.9,4.23297425]
[1733230134483,1.15733958,3608.4,3608.1,2.77147]
[1733230135010,1.15733958,3608.4,3607.9,1.46131425]
[1733230135215,1.15733958,3608.4,3607.9,4.23294425]
[1733230135584,1.15733958,3608.5,3607.9,4.23294425]
[1733230135791,1.43518011,3608.4,3608.0,2.7716]
[1733230135997,1.15733958,3608.5,3608.0,2.7716]
[1733230136311,1.43510567,3608.4,3608.0,2.7716]
[1733230136488,1.15733958,3608.5,3608.0,2.7716]
[1733230137325,1.15733958,3608.5,3608.1,2.77152]
[1733230138688,1.15733958,3608.6,3608.1,2.77152]
[1733230138886,1.43451552,3608.5,3608.1,2.77152]
[1733230139113,1.15733958,3608.6,3608.1,2.77152]
[1733230139294,1.43448003,3608.5,3608.1,2.77152]
[1733230139490,1.15733958,3608.6,3608.1,2.77152]
[1733230140313,1.43426055,3608.5,3607.9,1.46131425]
[1733230140519,1.15733958,3608.6,3608.0,2.77159]
[1733230140815,1.43407821,3608.5,3608.0,2.77159]
[1733230141121,1.15733958,3608.6,3608.1,2.77151]
[1733230142020,1.15733958,3608.6,3607.7,5.77184]
[1733230142021,1.5215,3608.5,3607.7,4.46131425]
[1733230142181,0.03464334,3608.4,3607.7,7.23309425]
[1733230142400,1.5215,3608.5,3607.7,7.23309425]
[1733230142890,1.5215,3608.5,3607.7,7.78760638]
[1733230143086,1.5215,3608.5,3607.7,5.77178]
[1733230143314,1.5215,3608.5,3607.5,1.46131425]
[1733230143315,2.71348406,3608.5,3607.6,3.0]
[1733230143521,1.5613,3608.3,3607.4,3.0]
[1733230144013,1.5613,3608.2,3607.1,0.56300126]
[1733230144225,1.5613,3608.0,3607.1,4.23360425]
[1733230144403,1.5613,3607.8,3607.1,2.77229]
[1733230144927,1.5613,3607.8,3606.9,0.54541267]
[1733230145216,1.5613,3607.8,3607.0,2.77238]
[1733230145217,0.54903996,3607.7,3607.0,2.77238]
[1733230145415,1.5613,3607.8,3607.0,2.77238]
[1733230146120,2.71863958,3607.8,3607.0,2.77238]
[1733230146323,1.6592,3607.7,3607.0,2.77238]
[1733230147821,1.6592,3607.7,3607.2,2.77216]
[1733230148947,1.6592,3607.7,3607.0,2.77232]
[1733230149241,1.6592,3607.7,3606.9,1.46131425]
[1733230149242,1.69385066,3607.7,3606.9,1.46131425]
[1733230149439,1.6592,3607.7,3607.1,2.77229]
[1733230151346,1.6592,3607.7,3607.0,2.77236]
[1733230151705,1.6592,3607.7,3606.9,3.0]
[1733230151945,1.6592,3607.7,3606.9,7.23374425]
[1733230154313,1.5176,3607.5,3606.5,1.6611]
[1733230154521,0.03465498,3607.4,3606.8,2.77253]
[1733230154713,1.5176,3607.5,3606.8,2.77253]
[1733230154920,0.03465404,3607.4,3606.7,1.46131425]
[1733230155242,0.03465404,3607.4,3606.7,4.23392425]
[1733230155444,1.5176,3607.5,3606.7,4.23392425]
[1733230155859,1.5176,3607.5,3606.6,3.0]
[1733230155860,1.57215405,3607.4,3606.6,3.0]
[1733230156145,1.57215405,3607.4,3606.0,2.77308]
[1733230156146,1.5375,3607.3,3606.4,2.77282]
[1733230156440,2.77225,3607.2,3606.2,2.77297]
[1733230156648,1.57215827,3607.1,3606.2,2.77297]
[1733230157205,1.57215827,3607.1,3606.3,3.0]
[1733230157405,1.5375,3607.1,3606.3,5.77291]
[1733230157645,1.5375,3607.1,3606.4,2.77284]
[1733230157902,0.03465827,3607.0,3606.3,3.55]
[1733230158205,1.547,3606.9,3606.3,6.32292]
[1733230159004,1.547,3606.9,3606.3,1.54766183]
[1733230159207,1.547,3606.9,3606.4,1.46131425]
[1733230159408,1.98604305,3607.5,3606.9,2.77243]
[1733230159409,1.5441,3607.5,3606.9,2.77243]
[1733230160008,1.5441,3607.5,3606.3,3.11406183]
[1733230160214,1.5655,3607.4,3606.7,2.77258]
[1733230160610,1.5655,3607.4,3606.8,2.77253]
[1733230161836,1.5655,3607.4,3606.6,1.46131425]
[1733230162039,1.5655,3607.4,3607.1,2.7723]
[1733230163763,1.5655,3607.4,3607.2,2.77217]
[1733230163945,1.5697,3608.0,3607.2,2.77217]
[1733230164264,1.5697,3608.0,3607.3,2.77214]
[1733230164712,1.5697,3608.0,3607.0,0.55]
[1733230164913,1.14970396,3607.9,3607.0,1.10227338]
[1733230165225,1.5697,3608.0,3607.4,2.772]
[1733230166454,1.5697,3608.0,3607.5,2.77196]
[1733230166653,1.5697,3608.0,3607.6,2.77191]
[1733230166856,1.5697,3608.0,3607.7,2.77183]
[1733230167011,1.5697,3608.0,3607.3,0.55]
[1733230167213,1.5697,3608.0,3607.5,2.77199]
[1733230167456,1.5697,3608.0,3607.6,2.77186]
[1733230167654,1.5697,3608.0,3607.5,0.55]
[1733230167813,1.5107,3608.4,3607.5,6.34597043]
[1733230168019,1.5107,3608.4,3608.0,2.77159]
[1733230168221,1.5107,3608.4,3607.8,2.77176]
[1733230168651,0.95490886,3608.3,3607.8,2.77176]
[1733230168819,2.66803958,3608.4,3607.8,2.77176]
[1733230169020,0.9548702,3608.3,3607.8,2.77176]
[1733230169319,1.5107,3608.4,3607.8,2.77176]
[1733230170115,1.5107,3608.4,3608.0,2.77161]
[1733230171017,1.5107,3608.4,3607.6,0.56670319]
[1733230171242,1.5107,3608.4,3608.0,2.77159]
[1733230172143,1.5107,3608.4,3607.8,2.77174]
[1733230172455,1.5107,3608.4,3607.7,0.54301432]
[1733230172653,1.5107,3608.4,3607.7,0.55]
[1733230172858,0.95527471,3608.3,3607.8,2.77175]
[1733230173062,2.66803958,3608.4,3607.8,2.77175]
[1733230173369,0.9898596,3608.3,3607.8,2.77175]
[1733230173528,2.66803958,3608.4,3607.8,2.77175]
[1733230173736,0.95534884,3608.3,3607.8,2.77175]
[1733230173940,2.66803958,3608.4,3607.8,2.77175]
[1733230174265,0.95533383,3608.3,3607.8,2.77175]
[1733230174423,2.66803958,3608.4,3607.9,2.77169]
[1733230174787,0.95544351,3608.3,3607.9,2.77169]
[1733230174918,1.5107,3608.4,3607.9,2.77169]
[1733230175122,0.99008168,3608.3,3607.7,0.55]
[1733230175427,2.66803958,3608.4,3607.7,2.77183]
[1733230175664,2.42360462,3608.3,3607.7,2.77183]
[1733230175834,2.42360462,3608.3,3607.1,2.77224]
[1733230175835,1.5507,3608.2,3607.1,1.5394]
[1733230176034,1.5507,3608.2,3607.3,3.0]
[1733230176221,0.03464837,3608.1,3607.4,2.772]
[1733230176566,1.83907683,3608.3,3607.0,3.0]
[1733230176567,1.6099,3608.0,3607.0,3.0]
[1733230176768,1.6099,3608.0,3607.5,2.77193]
[1733230176917,1.6099,3608.0,3607.2,1.66580401]
[1733230177273,1.6099,3608.0,3607.7,2.77177]
[1733230177418,1.6099,3608.0,3607.4,2.77206]
[1733230177619,1.6099,3608.0,3607.2,4.42412]
[1733230177933,1.6099,3608.0,3607.4,0.55]
[1733230179253,1.6099,3608.0,3607.0,1.04602804]
[1733230179436,0.95610649,3607.9,3607.0,4.04602804]
[1733230179640,3.9101495,3607.8,3607.0,4.04602804]
[1733230179839,0.95610649,3607.7,3607.0,4.04602804]
[1733230180183,2.67733958,3607.8,3607.0,4.04602804]
[1733230180490,1.5317,3607.5,3606.5,2.7727]
[1733230180641,1.5317,3607.5,3606.6,0.54495609]
[1733230180642,4.30385,3607.3,3606.6,0.54495609]
[1733230180840,3.54797004,3607.2,3606.6,0.54495609]
[1733230181144,2.39075698,3607.1,3606.6,0.54495609]
[1733230181339,1.15733958,3607.2,3606.6,0.54495609]
[1733230181649,2.3908681,3607.1,3606.6,0.54495609]
[1733230181847,1.15733958,3607.2,3606.6,0.54495609]
[1733230182052,2.39082613,3607.1,3606.6,0.54495609]
[1733230182344,0.95633045,3607.0,3606.6,0.54495609]
[1733230182554,1.15733958,3607.1,3606.7,0.55]
[1733230182733,0.9563978,3607.0,3606.7,0.55]
[1733230182933,1.15733958,3607.1,3606.7,0.55]
[1733230183243,0.95658148,3607.0,3606.7,0.55]
[1733230183455,1.15733958,3607.2,3606.7,0.55]
[1733230183653,3.54871546,3607.1,3606.7,0.55]
[1733230183858,2.39137588,3607.0,3606.7,0.55]
[1733230184057,1.15733958,3607.1,3606.7,0.55]
[1733230184405,2.39137875,3607.0,3606.7,0.55]
[1733230184570,1.15733958,3607.2,3606.7,0.55]
[1733230184884,2.59215996,3607.1,3606.7,0.55]
[1733230185036,3.25742832,3607.3,3606.7,0.55]
[1733230185037,1.5317,3607.3,3606.7,0.55]
[1733230185862,3.54853224,3607.2,3606.7,0.55]
[1733230186087,2.39159865,3607.1,3606.7,0.55]
[1733230186286,0.95663946,3607.0,3606.7,0.55]
[1733230186478,1.15693359,3607.2,3606.7,0.55]
[1733230186682,2.39149892,3607.1,3606.7,0.55]
[1733230186892,0.95659957,3607.0,3606.7,0.55]
[1733230187077,1.15693359,3607.1,3606.9,0.55]
[1733230187304,1.15693359,3607.4,3606.9,2.2144]
[1733230187472,0.95663795,3607.3,3607.2,0.55]
[1733230188311,0.95663795,3607.3,3607.0,0.55]
[1733230188526,1.15693359,3607.4,3607.0,0.55]
[1733230188527,0.95715916,3607.2,3607.0,3.32238]
[1733230188665,1.15693359,3607.4,3607.2,0.55]
[1733230189012,0.95727804,3607.3,3607.2,0.55]
[1733230189374,0.95746462,3607.3,3607.2,0.55]
[1733230189575,2.3937547,3607.3,3607.2,3.32223]
[1733230189774,0.95746462,3607.3,3607.2,3.32223]
[1733230190110,0.95746462,3607.3,3607.2,4.16262]
[1733230190612,1.15693359,3607.5,3607.2,1.39039]
[1733230190807,2.39375097,3607.4,3607.2,0.55]
[1733230191014,1.15693359,3607.5,3607.2,0.55]
[1733230191173,2.39375847,3607.4,3607.2,0.55]
[1733230191504,1.15693359,3607.5,3607.2,0.55]
[1733230191712,2.39381613,3607.4,3607.2,0.55]
[1733230191913,0.95752645,3607.3,3607.2,3.32223]
[1733230192088,1.15693359,3607.5,3607.2,3.885381]
[1733230192293,2.39406096,3607.4,3607.2,1.113151]
[1733230192516,0.95766577,3607.3,3607.2,1.113151]
[1733230193172,0.95766577,3607.3,3607.2,3.885381]
[1733230193807,1.73540038,3607.6,3607.2,3.885381]
[1733230193808,1.15693359,3607.5,3607.2,3.885381]
[1733230193982,2.39409135,3607.4,3607.2,3.885381]
[1733230194184,1.15693359,3607.5,3607.2,3.885381]
[1733230194394,2.39389341,3607.4,3607.2,3.885381]
[1733230194585,1.15693359,3607.5,3607.2,3.885381]
[1733230194786,2.39416227,3607.4,3607.2,3.885381]
[1733230195103,1.15693359,3607.5,3607.2,3.885381]
[1733230195415,0.95772129,3607.4,3607.2,3.885381]
[1733230195619,1.15693359,3607.5,3607.2,3.885381]
[1733230195814,0.95777535,3607.4,3607.2,3.885381]
[1733230196125,1.15693359,3607.5,3607.2,1.113151]
[1733230196411,2.39449748,3607.4,3607.2,1.113151]
[1733230196608,0.95779899,3607.3,3607.2,1.113151]
[1733230196917,0.95781985,3607.3,3607.2,1.113151]
[1733230197501,0.95781985,3607.3,3606.9,1.6644]
[1733230197502,1.6297,3607.2,3606.9,3.55]
[1733230197828,0.9578825,3607.1,3606.9,3.55]
[1733230197980,0.95786755,3607.0,3606.9,3.55]
[1733230198887,0.95783766,3607.0,3606.9,3.55]
[1733230199086,0.95783766,3607.0,3606.6,0.54495609]
[1733230199087,0.95784005,3607.0,3606.7,0.55]
[1733230199292,2.78663359,3607.2,3606.7,1.33754957]
[1733230199600,2.394678,3607.1,3606.9,0.55]
[1733230199915,0.95786382,3607.0,3606.9,0.55]
[1733230200419,2.78663359,3607.2,3606.9,0.55]
[1733230200626,2.39432951,3607.1,3606.9,0.55]
[1733230200919,0.95768165,3607.0,3606.9,0.55]
[1733230201079,2.78663359,3607.2,3606.9,0.55]
[1733230201279,2.39391734,3607.1,3606.9,0.55]
[1733230201511,0.95764083,3607.0,3606.9,0.55]
[1733230202185,1.15693359,3607.2,3606.9,3.81071057]
[1733230202385,0.95756769,3607.1,3606.9,1.03825057]
[1733230202590,1.15693359,3607.2,3606.9,0.55]
[1733230202802,0.95769283,3607.1,3606.9,0.55]
[1733230203004,1.15693359,3607.2,3606.9,0.55]
[1733230203197,2.39475448,3607.1,3606.7,0.55]
[1733230203516,1.15693359,3607.2,3606.7,0.55]
[1733230203720,2.39494878,3607.1,3606.7,0.55]
[1733230203915,0.95799633,3607.0,3606.7,0.55]
[1733230204119,1.15693359,3607.2,3606.7,0.55]
[1733230204421,2.39500718,3607.1,3606.7,0.55]
[1733230204717,0.95800287,3607.0,3606.7,1.39802461]
[1733230204878,1.15693359,3607.2,3606.7,1.39802461]
[1733230205080,2.3946088,3607.1,3606.7,4.17063461]
[1733230205275,1.15693359,3607.2,3606.7,4.17063461]
[1733230205276,0.95784352,3607.0,3606.7,4.17063461]
[1733230205525,1.15693359,3607.2,3606.7,4.17063461]
[1733230205719,3.55154382,3607.1,3606.7,1.39802461]
[1733230205928,0.95784409,3607.0,3606.7,0.55]
[1733230206081,0.95779853,3606.9,3606.4,0.55]
[1733230206280,1.5241,3607.0,3606.4,0.55]
[1733230206615,2.39447795,3606.9,3606.4,0.55]
[1733230206776,2.39447795,3606.8,3606.3,2.77291]
[1733230206976,0.95779876,3606.7,3606.3,2.77291]
[1733230207211,1.15693359,3606.9,3606.3,2.77291]
[1733230207374,2.3931325,3606.8,3606.3,2.77291]
[1733230207580,1.15693359,3606.9,3606.3,2.77291]
[1733230207790,2.3929789,3606.8,3606.3,2.77291]
[1733230208085,0.95717733,3606.7,3606.3,2.77291]
[1733230208282,1.15693359,3606.9,3606.4,0.2773]
[1733230208510,1.15693359,3606.9,3606.3,2.77291]
[1733230208511,1.5739,3606.7,3606.1,3.0]
[1733230208879,1.5739,3606.7,3605.8,7.29423]
[1733230208880,1.60855823,3606.7,3605.8,7.29423]
[1733230209377,0.95740525,3606.6,3605.8,5.77323]
[1733230209615,1.5739,3606.7,3605.5,4.54460712]
[1733230209829,1.5739,3606.7,3605.9,0.55964783]
[1733230210128,0.9572598,3606.6,3606.1,2.77306]
[1733230210356,0.9572598,3606.6,3605.9,0.55964783]
[1733230210357,1.60856033,3606.7,3605.9,3.55964783]
[1733230210480,1.60856033,3606.7,3605.9,5.15454783]
[1733230211193,1.60856033,3606.7,3605.9,3.55964783]
[1733230211522,1.5739,3606.7,3605.9,3.55964783]
[1733230211813,1.6085609,3606.7,3605.9,3.55964783]
[1733230212470,1.6085609,3606.7,3605.9,0.55964783]
[1733230212471,1.5739,3606.7,3605.9,0.55964783]
[1733230212616,1.60856032,3606.7,3606.0,2.77312]
[1733230212812,1.5739,3606.7,3606.0,2.77312]
[1733230213251,1.5739,3606.7,3606.1,2.77307]
[1733230213954,1.5739,3606.7,3606.0,0.93908243]
[1733230214252,1.15693359,3606.9,3606.4,2.77284]
[1733230214418,1.6148,3607.0,3606.4,2.77284]
[1733230215040,0.95698874,3606.9,3606.3,2.77292]
[1733230215239,2.77173359,3607.0,3606.2,1.5662]
[1733230215445,2.39253243,3606.9,3606.2,1.5662]
[1733230215633,1.6148,3607.0,3606.7,2.77255]
[1733230217343,1.6148,3607.0,3606.7,2.77257]
[1733230218029,2.72933359,3607.2,3606.7,2.77257]
[1733230218226,2.39344425,3607.1,3606.5,0.55]
[1733230218432,2.39344425,3607.1,3606.3,0.55]
[1733230218433,0.9573777,3607.0,3606.3,0.55]
[1733230218632,1.15693359,3607.1,3606.3,3.32291]
[1733230218936,1.6249,3606.9,3606.2,0.55]
[1733230219251,0.95723262,3606.8,3606.2,0.55]
[1733230219572,2.39332235,3606.7,3606.2,0.55]
[1733230219773,0.95731981,3606.6,3606.2,0.55]
[1733230219930,1.15693359,3606.8,3606.2,0.55]
[1733230220137,2.39331125,3606.7,3606.3,2.77289]
[1733230220456,2.78183359,3606.9,3606.4,2.77281]
[1733230220634,2.3941015,3606.8,3606.3,0.55]
[1733230220839,1.6249,3606.9,3606.3,3.32285]
[1733230221172,0.95762251,3606.8,3606.3,3.32285]
[1733230221344,2.78183359,3606.9,3606.3,3.32285]
[1733230221676,0.95786681,3606.8,3606.3,3.32285]
[1733230221842,2.78183359,3606.9,3606.3,4.15779602]
[1733230222046,0.95794409,3606.8,3606.3,4.15779602]
[1733230222270,2.78183359,3606.9,3606.3,4.15779602]
[1733230222480,2.39544505,3606.8,3606.3,0.55]
[1733230222633,0.95806444,3606.7,3606.3,0.55]
[1733230222978,1.15693359,3606.8,3606.2,0.55]
[1733230223146,2.39569055,3606.7,3606.2,0.55]
[1733230223346,1.15693359,3606.8,3606.2,4.78612642]
[1733230223542,2.39662537,3606.7,3606.2,6.05409144]
[1733230223748,1.15693359,3606.8,3606.2,6.05409144]
[1733230224059,0.9589435,3606.7,3606.2,6.05409144]
[1733230224259,1.15693359,3606.8,3606.2,4.59093502]
[1733230224574,3.5546743,3606.7,3606.2,3.32297]
[1733230224773,0.95909628,3606.6,3606.3,2.77291]
[1733230224959,0.95941388,3606.5,3606.3,2.77291]
[1733230225177,1.73540038,3606.8,3606.2,0.55]
[1733230225178,1.15693359,3606.6,3606.2,0.55]
[1733230225353,1.15693359,3606.8,3606.4,2.77284]
[1733230225536,0.95939905,3606.7,3606.3,1.5953]
[1733230225742,1.15693359,3606.8,3606.7,2.77261]
[1733230226067,3.55571934,3606.8,3606.7,2.77261]
[1733230226444,2.4000098,3606.8,3606.7,2.77261]
[1733230226842,0.9595143,3606.8,3606.7,2.77261]
[1733230227043,1.15693359,3607.0,3606.6,1.46315642]
[1733230227241,0.96057489,3606.9,3606.8,2.77253]
[1733230227543,3.55837027,3606.9,3606.8,2.77253]
[1733230228378,3.55837027,3606.9,3606.8,3.32253]
[1733230228550,2.40144751,3606.9,3606.8,3.32253]
[1733230229076,2.40154186,3606.9,3606.8,3.32253]
[1733230229285,2.4015223,3606.9,3606.8,3.32253]
[1733230229496,0.96057489,3606.9,3606.8,3.32253]
[1733230229776,1.15693359,3607.1,3606.9,3.32238]
[1733230229937,2.40151812,3607.0,3606.9,3.32238]
[1733230230351,2.4017804,3607.0,3606.9,3.32238]
[1733230230574,2.4017619,3607.0,3606.9,3.32238]
[1733230230779,0.96060725,3607.0,3606.9,3.32238]
[1733230230955,2.40180504,3607.0,3606.9,4.40017673]
[1733230231294,1.15693359,3607.2,3606.7,0.55]
[1733230231449,0.96078827,3607.1,3606.6,0.55]
[1733230231635,1.15693359,3607.2,3606.9,0.55]
[1733230231839,3.55876483,3607.1,3606.9,0.55]
[1733230232088,0.9607668,3607.0,3606.9,0.55]
[1733230232252,0.0523807,3607.0,3606.9,3.32246]
[1733230232457,0.0523807,3607.0,3606.9,4.85216]
[1733230232636,1.15693359,3607.2,3607.1,2.77231]
[1733230232842,0.05248542,3607.2,3607.1,4.78546642]
[1733230233176,1.15693359,3607.4,3607.2,2.77221]
[1733230233473,2.40211665,3607.3,3607.2,2.64887708]